[Event "Titled Tuesday Blitz May 24 Late 2022"]
[White "Adewumi, Tanitoluwa"]
[Black "Keymer, Vincent"]
[WhiteFideId "30966396"]
[BlackFideId "12940690"]
[WhiteElo "2523"]
[BlackElo "2548"]
[Result "0-1"]
[Round "01"]
[TimeControl "180+1"]
[Date "2022.05.24"]
[WhiteClock "0:00:15"]
[BlackClock "0:00:55"]

1. e4 {[%clk 0:03:00]}  c6 {[%clk 0:02:59]} 2. d4 {[%clk 0:02:59]}  d5 {[%clk 0:03:00]} 3. e5 {[%clk 0:02:59]}  Bf5 {[%clk 0:02:59]} 4. Nf3 {[%clk 0:03:00]}  e6 {[%clk 0:02:59]} 5. Be2 {[%clk 0:03:00]}  c5 {[%clk 0:02:59]} 6. O-O {[%clk 0:02:59]}  Nc6 {[%clk 0:02:57]} 7. Be3 {[%clk 0:02:54]}  cxd4 {[%clk 0:02:57]} 8. Nxd4 {[%clk 0:02:52]}  Nxd4 {[%clk 0:02:57]} 9. Bxd4 {[%clk 0:02:51]}  Ne7 {[%clk 0:02:58]} 10. Nd2 {[%clk 0:02:46]}  Nc6 {[%clk 0:02:57]} 11. Bb5 {[%clk 0:02:46]}  Be7 {[%clk 0:02:54]} 12. Nb3 {[%clk 0:02:45]}  Qc7 {[%clk 0:02:34]} 13. Re1 {[%clk 0:02:30]}  O-O {[%clk 0:02:33]} 14. Bxc6 {[%clk 0:02:18]}  Qxc6 {[%clk 0:02:31]} 15. c3 {[%clk 0:02:10]}  Bg6 {[%clk 0:02:30]} 16. h3 {[%clk 0:02:01]}  a5 {[%clk 0:02:13]} 17. a4 {[%clk 0:01:54]}  b5 {[%clk 0:02:13]} 18. Be3 {[%clk 0:01:48]}  b4 {[%clk 0:02:05]} 19. Bd4 {[%clk 0:01:14]}  Rfc8 {[%clk 0:01:58]} 20. Qd2 {[%clk 0:01:13]}  Qc4 {[%clk 0:01:45]} 21. Qd1 {[%clk 0:01:07]}  Qa6 {[%clk 0:01:43]} 22. Re3 {[%clk 0:01:00]}  Rab8 {[%clk 0:01:36]} 23. cxb4 {[%clk 0:00:50]}  Bxb4 {[%clk 0:01:32]} 24. Rc1 {[%clk 0:00:47]}  h6 {[%clk 0:01:22]} 25. Bc3 {[%clk 0:00:44]}  Rc4 {[%clk 0:01:15]} 26. Bxb4 {[%clk 0:00:42]}  Rbxb4 {[%clk 0:01:11]} 27. Rec3 {[%clk 0:00:36]}  Qb6 {[%clk 0:01:04]} 28. Rxc4 {[%clk 0:00:22]}  dxc4 {[%clk 0:00:57]} 29. Nd4 {[%clk 0:00:15]}  Rxb2 {[%clk 0:00:55]} 0-1


[Site "https://www.chess.com"]

[Event "Titled Tuesday Blitz May 24 Late 2022"]
[White "Al-Tarboush, Ward"]
[Black "Andreikin, Dmitry"]
[WhiteFideId "7601450"]
[BlackFideId "4158814"]
[WhiteElo "2294"]
[BlackElo "2736"]
[Result "0-1"]
[Round "01"]
[TimeControl "180+1"]
[Date "2022.05.24"]
[WhiteClock "0:00:02"]
[BlackClock "0:00:21"]

1. e4 {[%clk 0:03:00]}  c5 {[%clk 0:02:59]} 2. Nf3 {[%clk 0:02:59]}  e6 {[%clk 0:02:59]} 3. d4 {[%clk 0:02:59]}  cxd4 {[%clk 0:03:00]} 4. Nxd4 {[%clk 0:03:00]}  Nc6 {[%clk 0:03:01]} 5. Nc3 {[%clk 0:02:59]}  d6 {[%clk 0:03:01]} 6. Be3 {[%clk 0:02:58]}  Nf6 {[%clk 0:03:00]} 7. Be2 {[%clk 0:02:57]}  Be7 {[%clk 0:02:58]} 8. g4 {[%clk 0:02:56]}  h6 {[%clk 0:02:55]} 9. h4 {[%clk 0:02:52]}  a6 {[%clk 0:02:53]} 10. Rg1 {[%clk 0:02:51]}  Nd7 {[%clk 0:02:41]} 11. Qd2 {[%clk 0:02:42]}  Qc7 {[%clk 0:02:26]} 12. O-O-O {[%clk 0:02:32]}  b5 {[%clk 0:02:25]} 13. g5 {[%clk 0:02:10]}  b4 {[%clk 0:02:15]} 14. Na4 {[%clk 0:01:57]}  hxg5 {[%clk 0:02:13]} 15. hxg5 {[%clk 0:01:56]}  Nxd4 {[%clk 0:02:03]} 16. Qxd4 {[%clk 0:01:42]}  e5 {[%clk 0:01:59]} 17. Qxb4 {[%clk 0:01:19]}  d5 {[%clk 0:01:59]} 18. Qb3 {[%clk 0:00:56]}  d4 {[%clk 0:01:57]} 19. Bd2 {[%clk 0:00:52]}  Rb8 {[%clk 0:01:55]} 20. Qc4 {[%clk 0:00:50]}  Qxc4 {[%clk 0:01:34]} 21. Bxc4 {[%clk 0:00:51]}  Rh2 {[%clk 0:01:33]} 22. g6 {[%clk 0:00:47]}  fxg6 {[%clk 0:01:28]} 23. Rxg6 {[%clk 0:00:46]}  Bf6 {[%clk 0:01:28]} 24. f4 {[%clk 0:00:45]}  Rxd2 {[%clk 0:01:23]} 25. Rxd2 {[%clk 0:00:41]}  exf4 {[%clk 0:01:24]} 26. Rg1 {[%clk 0:00:30]}  Ne5 {[%clk 0:01:22]} 27. Be2 {[%clk 0:00:25]}  f3 {[%clk 0:01:22]} 28. Bd1 {[%clk 0:00:21]}  g5 {[%clk 0:01:21]} 29. Rxd4 {[%clk 0:00:14]}  g4 {[%clk 0:01:21]} 30. Rf1 {[%clk 0:00:04]}  g3 {[%clk 0:01:16]} 31. Bxf3 {[%clk 0:00:04]}  Nxf3 {[%clk 0:01:15]} 32. Rxf3 {[%clk 0:00:05]}  g2 {[%clk 0:01:10]} 33. Rg3 {[%clk 0:00:05]}  Bxd4 {[%clk 0:01:05]} 34. Rxg2 {[%clk 0:00:05]}  Ke7 {[%clk 0:01:00]} 35. c3 {[%clk 0:00:05]}  Be3+ {[%clk 0:01:00]} 36. Kc2 {[%clk 0:00:05]}  Bd7 {[%clk 0:01:01]} 37. b3 {[%clk 0:00:05]}  Bc6 {[%clk 0:01:00]} 38. Rg7+ {[%clk 0:00:04]}  Kf6 {[%clk 0:00:59]} 39. Rg4 {[%clk 0:00:04]}  Ke5 {[%clk 0:00:57]} 40. Kd3 {[%clk 0:00:04]}  Ba7 {[%clk 0:00:52]} 41. Rg5+ {[%clk 0:00:03]}  Kf6 {[%clk 0:00:52]} 42. Rf5+ {[%clk 0:00:03]}  Ke6 {[%clk 0:00:53]} 43. Rh5 {[%clk 0:00:03]}  Rd8+ {[%clk 0:00:52]} 44. Ke2 {[%clk 0:00:02]}  Bb5+ {[%clk 0:00:48]} 45. c4 {[%clk 0:00:02]}  Bxa4 {[%clk 0:00:48]} 46. bxa4 {[%clk 0:00:03]}  Bd4 {[%clk 0:00:41]} 47. Ra5 {[%clk 0:00:02]}  Rd6 {[%clk 0:00:41]} 48. Rd5 {[%clk 0:00:03]}  Be5 {[%clk 0:00:37]} 49. Kd3 {[%clk 0:00:03]}  Rb6 {[%clk 0:00:36]} 50. c5 {[%clk 0:00:03]}  Rb4 {[%clk 0:00:28]} 51. c6 {[%clk 0:00:03]}  Rb6 {[%clk 0:00:28]} 52. Rc5 {[%clk 0:00:03]}  Bc7 {[%clk 0:00:28]} 53. Kc4 {[%clk 0:00:03]}  Rb2 {[%clk 0:00:27]} 54. Kd4 {[%clk 0:00:01]}  Bb6 {[%clk 0:00:25]} 55. c7 {[%clk 0:00:01]}  Bxc5+ {[%clk 0:00:22]} 56. Kxc5 {[%clk 0:00:02]}  Kd7 {[%clk 0:00:21]} 0-1


[Site "https://www.chess.com"]

[Event "Titled Tuesday Blitz May 24 Late 2022"]
[White "Antonio, Jorge Carlos"]
[Black "Vovk, Orest"]
[WhiteFideId "113190"]
[BlackFideId "14113490"]
[WhiteElo "2247"]
[BlackElo "2203"]
[Result "1/2-1/2"]
[Round "01"]
[TimeControl "180+1"]
[Date "2022.05.25"]
[WhiteClock "0:00:14"]
[BlackClock "0:00:07"]

1. e4 {[%clk 0:03:00]}  g5 {[%clk 0:02:59]} 2. d4 {[%clk 0:03:00]}  g4 {[%clk 0:02:58]} 3. c4 {[%clk 0:02:59]}  Bg7 {[%clk 0:02:57]} 4. Be3 {[%clk 0:02:58]}  h5 {[%clk 0:02:52]} 5. h3 {[%clk 0:02:53]}  d6 {[%clk 0:02:44]} 6. Nc3 {[%clk 0:02:49]}  c6 {[%clk 0:02:38]} 7. Be2 {[%clk 0:02:49]}  Nf6 {[%clk 0:02:35]} 8. Qd2 {[%clk 0:02:43]}  Qa5 {[%clk 0:02:34]} 9. f4 {[%clk 0:02:39]}  a6 {[%clk 0:02:05]} 10. e5 {[%clk 0:02:20]}  dxe5 {[%clk 0:01:55]} 11. dxe5 {[%clk 0:02:20]}  Nfd7 {[%clk 0:01:53]} 12. O-O-O {[%clk 0:02:16]}  Nf8 {[%clk 0:01:43]} 13. hxg4 {[%clk 0:02:13]}  hxg4 {[%clk 0:01:43]} 14. Rxh8 {[%clk 0:02:10]}  Bxh8 {[%clk 0:01:44]} 15. Bd3 {[%clk 0:02:06]}  Nbd7 {[%clk 0:01:36]} 16. g3 {[%clk 0:02:06]}  Nc5 {[%clk 0:01:34]} 17. Bc2 {[%clk 0:02:02]}  Be6 {[%clk 0:01:32]} 18. f5 {[%clk 0:01:59]}  Bxc4 {[%clk 0:01:27]} 19. Qd4 {[%clk 0:01:55]}  Bxe5 {[%clk 0:01:10]} 20. Qxc4 {[%clk 0:01:50]}  Nfd7 {[%clk 0:01:05]} 21. Nge2 {[%clk 0:01:49]}  b5 {[%clk 0:01:02]} 22. Qxg4 {[%clk 0:01:45]}  b4 {[%clk 0:00:44]} 23. Qg8+ {[%clk 0:01:33]}  Nf8 {[%clk 0:00:44]} 24. Nb1 {[%clk 0:01:10]}  Qxa2 {[%clk 0:00:38]} 25. Bd4 {[%clk 0:01:06]}  Qc4 {[%clk 0:00:22]} 26. Nd2 {[%clk 0:01:00]}  Qxe2 {[%clk 0:00:12]} 27. Bxc5 {[%clk 0:00:57]}  O-O-O {[%clk 0:00:12]} 28. Qxf7 {[%clk 0:00:52]}  Nd7 {[%clk 0:00:08]} 29. Qe6 {[%clk 0:00:46]}  Kc7 {[%clk 0:00:06]} 30. Bxe7 {[%clk 0:00:42]}  Re8 {[%clk 0:00:06]} 31. Ba4 {[%clk 0:00:31]}  Rxe7 {[%clk 0:00:05]} 32. Qxc6+ {[%clk 0:00:27]}  Kb8 {[%clk 0:00:06]} 33. Nc4 {[%clk 0:00:19]}  Bxb2+ {[%clk 0:00:02]} 34. Nxb2 {[%clk 0:00:18]}  Qe3+ {[%clk 0:00:02]} 35. Kb1 {[%clk 0:00:13]}  Qe4+ {[%clk 0:00:02]} 36. Qxe4 {[%clk 0:00:12]}  Rxe4 {[%clk 0:00:03]} 37. Rxd7 {[%clk 0:00:12]}  Rg4 {[%clk 0:00:03]} 38. f6 {[%clk 0:00:12]}  Rxg3 {[%clk 0:00:04]} 39. f7 {[%clk 0:00:13]}  Rf3 {[%clk 0:00:05]} 40. Rd8+ {[%clk 0:00:12]}  Kc7 {[%clk 0:00:04]} 41. f8=Q {[%clk 0:00:13]}  Rxf8 {[%clk 0:00:04]} 42. Rxf8 {[%clk 0:00:13]}  Kb6 {[%clk 0:00:05]} 43. Rf6+ {[%clk 0:00:13]}  Ka5 {[%clk 0:00:06]} 44. Kc2 {[%clk 0:00:13]}  b3+ {[%clk 0:00:07]} 45. Kxb3 {[%clk 0:00:14]} 1/2-1/2


[Site "https://www.chess.com"]

[Event "Titled Tuesday Blitz May 24 Late 2022"]
[White "Avramidou, Anastasia"]
[Black "Vasquez Schroeder, Rodrigo"]
[WhiteFideId "4239873"]
[BlackFideId "3400042"]
[WhiteElo "2183"]
[BlackElo "2567"]
[Result "1-0"]
[Round "01"]
[TimeControl "180+1"]
[Date "2022.05.24"]
[WhiteClock "0:00:11"]
[BlackClock "0:01:22"]

1. c4 {[%clk 0:02:57]}  g6 {[%clk 0:02:58]} 2. Nc3 {[%clk 0:02:48]}  Bg7 {[%clk 0:02:58]} 3. e4 {[%clk 0:02:48]}  d6 {[%clk 0:02:58]} 4. d4 {[%clk 0:02:49]}  Nf6 {[%clk 0:02:57]} 5. Bd3 {[%clk 0:02:48]}  O-O {[%clk 0:02:57]} 6. Nge2 {[%clk 0:02:49]}  Nc6 {[%clk 0:02:58]} 7. O-O {[%clk 0:02:48]}  Nd7 {[%clk 0:02:58]} 8. Be3 {[%clk 0:02:47]}  e5 {[%clk 0:02:58]} 9. d5 {[%clk 0:02:47]}  Nd4 {[%clk 0:02:58]} 10. f3 {[%clk 0:02:46]}  c5 {[%clk 0:02:54]} 11. Rb1 {[%clk 0:02:43]}  f5 {[%clk 0:02:49]} 12. exf5 {[%clk 0:02:44]}  gxf5 {[%clk 0:02:49]} 13. Qd2 {[%clk 0:02:42]}  b6 {[%clk 0:02:41]} 14. b3 {[%clk 0:02:39]}  Nf6 {[%clk 0:02:40]} 15. a3 {[%clk 0:02:38]}  Bd7 {[%clk 0:02:40]} 16. b4 {[%clk 0:02:37]}  Kh8 {[%clk 0:02:36]} 17. Kh1 {[%clk 0:02:27]}  Rc8 {[%clk 0:02:35]} 18. bxc5 {[%clk 0:02:23]}  bxc5 {[%clk 0:02:34]} 19. Bxd4 {[%clk 0:01:56]}  cxd4 {[%clk 0:02:32]} 20. Nb5 {[%clk 0:01:57]}  Bxb5 {[%clk 0:02:25]} 21. Rxb5 {[%clk 0:01:56]}  Nd7 {[%clk 0:02:22]} 22. Ng3 {[%clk 0:01:42]}  f4 {[%clk 0:02:16]} 23. Ne4 {[%clk 0:01:38]}  Nb6 {[%clk 0:02:14]} 24. Rc1 {[%clk 0:01:33]}  Bf6 {[%clk 0:02:11]} 25. Qa2 {[%clk 0:01:23]}  Be7 {[%clk 0:02:10]} 26. a4 {[%clk 0:01:22]}  Qd7 {[%clk 0:02:07]} 27. Rcb1 {[%clk 0:01:18]}  Rc7 {[%clk 0:02:01]} 28. a5 {[%clk 0:01:18]}  Nc8 {[%clk 0:02:01]} 29. Rb8 {[%clk 0:01:13]}  Rg8 {[%clk 0:01:58]} 30. Bf1 {[%clk 0:01:11]}  Bh4 {[%clk 0:01:55]} 31. Qb2 {[%clk 0:01:03]}  Rg6 {[%clk 0:01:53]} 32. Rb7 {[%clk 0:01:00]}  Rg7 {[%clk 0:01:48]} 33. Rxc7 {[%clk 0:00:59]}  Qxc7 {[%clk 0:01:49]} 34. Qb8 {[%clk 0:00:58]}  Bd8 {[%clk 0:01:43]} 35. Qxc7 {[%clk 0:00:55]}  Bxc7 {[%clk 0:01:42]} 36. Bd3 {[%clk 0:00:28]}  Re7 {[%clk 0:01:41]} 37. h3 {[%clk 0:00:20]}  h6 {[%clk 0:01:41]} 38. Rb7 {[%clk 0:00:19]}  Kg7 {[%clk 0:01:38]} 39. a6 {[%clk 0:00:19]}  Kf7 {[%clk 0:01:37]} 40. Nf2 {[%clk 0:00:18]}  Bb6 {[%clk 0:01:31]} 41. Ng4 {[%clk 0:00:16]}  h5 {[%clk 0:01:29]} 42. Nf2 {[%clk 0:00:15]}  Rc7 {[%clk 0:01:27]} 43. Ne4 {[%clk 0:00:15]}  Ke7 {[%clk 0:01:26]} 44. Kh2 {[%clk 0:00:14]}  Kd8 {[%clk 0:01:26]} 45. Ng5 {[%clk 0:00:12]}  Re7 {[%clk 0:01:22]} 46. Ne6+ {[%clk 0:00:12]}  Ke8 {[%clk 0:01:22]} 47. Bg6+ {[%clk 0:00:11]} 1-0


[Site "https://www.chess.com"]

[Event "Titled Tuesday Blitz May 24 Late 2022"]
[White "Baches Garcia, Guillermo"]
[Black "Kobalia, Mikhail"]
[WhiteFideId "2209764"]
[BlackFideId "4119150"]
[WhiteElo "2470"]
[BlackElo "2667"]
[Result "0-1"]
[Round "01"]
[TimeControl "180+1"]
[Date "2022.05.25"]
[WhiteClock "0:00:19"]
[BlackClock "0:01:20"]

1. e4 {[%clk 0:03:00]}  c6 {[%clk 0:02:58]} 2. Nc3 {[%clk 0:03:00]}  d5 {[%clk 0:02:56]} 3. Nf3 {[%clk 0:03:01]}  Bg4 {[%clk 0:02:54]} 4. h3 {[%clk 0:03:00]}  Bxf3 {[%clk 0:02:55]} 5. Qxf3 {[%clk 0:03:00]}  e6 {[%clk 0:02:55]} 6. Be2 {[%clk 0:02:59]}  Nf6 {[%clk 0:02:55]} 7. O-O {[%clk 0:02:59]}  Bb4 {[%clk 0:02:55]} 8. exd5 {[%clk 0:02:58]}  cxd5 {[%clk 0:02:54]} 9. a3 {[%clk 0:02:50]}  Bd6 {[%clk 0:02:52]} 10. d4 {[%clk 0:02:47]}  Nc6 {[%clk 0:02:52]} 11. Rd1 {[%clk 0:02:34]}  O-O {[%clk 0:02:47]} 12. Qd3 {[%clk 0:02:25]}  Rc8 {[%clk 0:02:45]} 13. Be3 {[%clk 0:02:23]}  a6 {[%clk 0:02:45]} 14. Na4 {[%clk 0:02:12]}  Qe7 {[%clk 0:02:37]} 15. b4 {[%clk 0:01:42]}  e5 {[%clk 0:02:14]} 16. dxe5 {[%clk 0:01:29]}  Nxe5 {[%clk 0:02:13]} 17. Qd2 {[%clk 0:01:09]}  Rcd8 {[%clk 0:01:52]} 18. Nc5 {[%clk 0:01:00]}  Ne4 {[%clk 0:01:42]} 19. Qxd5 {[%clk 0:00:45]}  Nc3 {[%clk 0:01:41]} 20. Qd2 {[%clk 0:00:37]}  Nxd1 {[%clk 0:01:36]} 21. Rxd1 {[%clk 0:00:35]}  Bxc5 {[%clk 0:01:31]} 22. Bxc5 {[%clk 0:00:34]}  Rxd2 {[%clk 0:01:31]} 23. Bxe7 {[%clk 0:00:34]}  Rxe2 {[%clk 0:01:29]} 24. Bxf8 {[%clk 0:00:34]}  Kxf8 {[%clk 0:01:30]} 25. Rd8+ {[%clk 0:00:33]}  Ke7 {[%clk 0:01:29]} 26. Rb8 {[%clk 0:00:34]}  Rxc2 {[%clk 0:01:27]} 27. Rxb7+ {[%clk 0:00:33]}  Ke6 {[%clk 0:01:27]} 28. f4 {[%clk 0:00:29]}  Nd3 {[%clk 0:01:25]} 29. Rb6+ {[%clk 0:00:27]}  Kf5 {[%clk 0:01:25]} 30. Rxa6 {[%clk 0:00:26]}  Nxf4 {[%clk 0:01:24]} 31. b5 {[%clk 0:00:26]}  Rxg2+ {[%clk 0:01:24]} 32. Kf1 {[%clk 0:00:26]}  Rb2 {[%clk 0:01:24]} 33. a4 {[%clk 0:00:24]}  Ke4 {[%clk 0:01:24]} 34. Ke1 {[%clk 0:00:19]}  Ke3 {[%clk 0:01:20]} 35. Kd1 {[%clk 0:00:19]}  Nd3 {[%clk 0:01:20]} 0-1


[Site "https://www.chess.com"]

[Event "Titled Tuesday Blitz May 24 Late 2022"]
[White "Boder, Jan"]
[Black "Romanchuk, Viktor"]
[WhiteFideId "16243226"]
[BlackFideId "14109271"]
[WhiteElo "2064"]
[BlackElo "2242"]
[Result "1-0"]
[Round "01"]
[TimeControl "180+1"]
[Date "2022.05.25"]
[WhiteClock "0:00:06"]
[BlackClock "0:00:09"]

1. c4 {[%clk 0:02:59]}  c6 {[%clk 0:02:56]} 2. g3 {[%clk 0:02:53]}  d5 {[%clk 0:02:55]} 3. Bg2 {[%clk 0:02:53]}  Nf6 {[%clk 0:02:54]} 4. Nf3 {[%clk 0:02:53]}  Bg4 {[%clk 0:02:53]} 5. Qb3 {[%clk 0:02:48]}  Qb6 {[%clk 0:02:52]} 6. Ne5 {[%clk 0:02:44]}  Be6 {[%clk 0:02:48]} 7. d3 {[%clk 0:02:40]}  dxc4 {[%clk 0:02:42]} 8. Nxc4 {[%clk 0:02:26]}  Qd8 {[%clk 0:02:38]} 9. Qxb7 {[%clk 0:02:22]}  Nbd7 {[%clk 0:02:36]} 10. Bxc6 {[%clk 0:02:09]}  Rc8 {[%clk 0:02:32]} 11. Bf4 {[%clk 0:02:01]}  g6 {[%clk 0:02:28]} 12. Nc3 {[%clk 0:01:53]}  Bg7 {[%clk 0:02:27]} 13. Nb5 {[%clk 0:01:38]}  O-O {[%clk 0:02:25]} 14. Bc7 {[%clk 0:01:38]}  Qe8 {[%clk 0:02:12]} 15. Nxa7 {[%clk 0:01:34]}  Nc5 {[%clk 0:01:54]} 16. Qb6 {[%clk 0:01:10]}  Nfd7 {[%clk 0:01:37]} 17. Nxc8 {[%clk 0:00:50]}  Qxc8 {[%clk 0:01:18]} 18. Qa5 {[%clk 0:00:44]}  Nb7 {[%clk 0:01:03]} 19. Bxb7 {[%clk 0:00:43]}  Qxb7 {[%clk 0:01:02]} 20. O-O {[%clk 0:00:41]}  Ra8 {[%clk 0:00:59]} 21. Qg5 {[%clk 0:00:25]}  Qxc7 {[%clk 0:00:58]} 22. Qxe7 {[%clk 0:00:25]}  Qc6 {[%clk 0:00:45]} 23. Rfc1 {[%clk 0:00:20]}  Bh3 {[%clk 0:00:39]} 24. Ne3 {[%clk 0:00:20]}  Qb7 {[%clk 0:00:33]} 25. Rc2 {[%clk 0:00:19]}  Bd4 {[%clk 0:00:27]} 26. Qh4 {[%clk 0:00:16]}  Bxe3 {[%clk 0:00:21]} 27. Qxh3 {[%clk 0:00:17]}  Ba7 {[%clk 0:00:19]} 28. Rac1 {[%clk 0:00:17]}  Nf8 {[%clk 0:00:17]} 29. Qg2 {[%clk 0:00:15]}  Qb8 {[%clk 0:00:16]} 30. Qf3 {[%clk 0:00:11]}  Ne6 {[%clk 0:00:15]} 31. Kg2 {[%clk 0:00:08]}  Nd4 {[%clk 0:00:15]} 32. Rc8+ {[%clk 0:00:08]}  Qxc8 {[%clk 0:00:15]} 33. Rxc8+ {[%clk 0:00:08]}  Rxc8 {[%clk 0:00:15]} 34. Qb7 {[%clk 0:00:09]}  Rb8 {[%clk 0:00:14]} 35. Qxa7 {[%clk 0:00:09]}  Rd8 {[%clk 0:00:14]} 36. e3 {[%clk 0:00:08]}  Ne6 {[%clk 0:00:14]} 37. d4 {[%clk 0:00:07]}  Rc8 {[%clk 0:00:15]} 38. Qd7 {[%clk 0:00:06]}  Rc2 {[%clk 0:00:14]} 39. Qe8+ {[%clk 0:00:04]}  Kg7 {[%clk 0:00:13]} 40. Qb5 {[%clk 0:00:05]}  h5 {[%clk 0:00:12]} 41. h4 {[%clk 0:00:05]}  Kg8 {[%clk 0:00:11]} 42. a4 {[%clk 0:00:04]}  Ng7 {[%clk 0:00:11]} 43. a5 {[%clk 0:00:04]}  Nf5 {[%clk 0:00:12]} 44. Kf3 {[%clk 0:00:04]}  Nd6 {[%clk 0:00:10]} 45. Qb8+ {[%clk 0:00:04]}  Nc8 {[%clk 0:00:10]} 46. a6 {[%clk 0:00:04]}  Kg7 {[%clk 0:00:10]} 47. a7 {[%clk 0:00:04]}  Nxa7 {[%clk 0:00:11]} 48. Qxa7 {[%clk 0:00:05]}  Rxb2 {[%clk 0:00:11]} 49. Qc5 {[%clk 0:00:05]}  Rb7 {[%clk 0:00:11]} 50. Qe5+ {[%clk 0:00:05]}  Kg8 {[%clk 0:00:10]} 51. d5 {[%clk 0:00:05]}  Rb5 {[%clk 0:00:09]} 52. Qe8+ {[%clk 0:00:05]}  Kg7 {[%clk 0:00:09]} 53. Qxb5 {[%clk 0:00:06]} 1-0


[Site "https://www.chess.com"]

[Event "Titled Tuesday Blitz May 24 Late 2022"]
[White "Bonte, Andrei-Mihai"]
[Black "Goltsev, Dmitry"]
[WhiteFideId "1210297"]
[BlackFideId "24176710"]
[WhiteElo "2192"]
[BlackElo "2258"]
[Result "0-1"]
[Round "01"]
[TimeControl "180+1"]
[Date "2022.05.25"]
[WhiteClock "0:02:45"]
[BlackClock "0:02:49"]

1. d4 {[%clk 0:03:00]}  Nf6 {[%clk 0:02:57]} 2. c4 {[%clk 0:02:55]}  e6 {[%clk 0:02:58]} 3. Nf3 {[%clk 0:02:56]}  Bb4+ {[%clk 0:02:58]} 4. Bd2 {[%clk 0:02:55]}  Qe7 {[%clk 0:02:59]} 5. e3 {[%clk 0:02:52]}  b6 {[%clk 0:02:59]} 6. Bd3 {[%clk 0:02:49]}  Bb7 {[%clk 0:02:56]} 7. a3 {[%clk 0:02:49]}  Bxd2+ {[%clk 0:02:54]} 8. Nbxd2 {[%clk 0:02:49]}  d6 {[%clk 0:02:55]} 9. O-O {[%clk 0:02:48]}  Nbd7 {[%clk 0:02:54]} 10. Qc2 {[%clk 0:02:47]}  e5 {[%clk 0:02:52]} 11. d5 {[%clk 0:02:45]}  Nc5 {[%clk 0:02:51]} 12. b4 {[%clk 0:02:45]}  Nxd3 {[%clk 0:02:48]} 13. Qxd3 {[%clk 0:02:45]}  e4 {[%clk 0:02:49]} 0-1


[Site "https://www.chess.com"]